bitfinex/quotes_ETHUSD_20260113
["timestamp","ask_amount","ask_price","bid_price","bid_amount"]
[1768347907843,0.42050801,3320.2,3319.0,0.92880112]
[1768347908050,0.398,3320.2,3319.1,3.0128189]
[1768347909386,1.35305153,3320.2,3319.1,3.0128189]
[1768347909546,0.95505153,3320.1,3319.0,3.012918]
[1768347909740,0.95505153,3320.0,3319.0,0.76130396]
[1768347909941,0.97755954,3320.0,3318.8,1.32202397]
[1768347910141,0.97755954,3320.0,3318.7,3.01317548]
[1768347910449,0.95505153,3320.0,3318.8,3.01312662]
[1768347910663,0.43649208,3320.1,3318.9,0.92880112]
[1768347910842,0.83449208,3320.1,3318.9,0.95893158]
[1768347911044,0.83449208,3320.1,3318.9,0.92880112]
[1768347911742,1.39154361,3320.1,3319.0,0.399]
[1768347911948,0.95505153,3320.0,3319.0,0.18031451]
[1768347912171,0.95505153,3320.0,3318.6,0.399]
[1768347912584,0.95505153,3320.0,3318.7,6.02645614]
[1768347913283,3.011958,3320.1,3318.8,0.92880112]
[1768347914471,3.96691828,3320.2,3318.9,3.01304649]
[1768347914660,0.95505153,3320.1,3318.9,3.01304649]
[1768347914857,0.39894263,3320.0,3319.0,0.92880112]
[1768347915174,0.95505153,3321.0,3319.2,0.92880112]
[1768347915487,0.95505153,3320.8,3319.1,0.399]
[1768347915693,6.02228244,3321.0,3319.1,0.399]
[1768347915694,0.002,3320.5,3319.3,0.92880112]
[1768347916199,0.002,3320.5,3319.5,0.92880112]
[1768347916347,0.002,3321.3,3320.3,0.92880112]
[1768347916555,0.002,3321.3,3320.2,3.01180929]
[1768347916556,0.002,3320.8,3320.2,3.01180929]
[1768347916892,0.002,3320.8,3320.3,0.92880112]
[1768347917089,0.002,3320.8,3320.2,3.01180929]
[1768347917396,0.002,3320.8,3320.3,3.01174249]
[1768347918195,0.002,3320.8,3320.0,0.94313973]
[1768347918196,0.002,3320.8,3320.0,0.399]
[1768347918355,0.002,3320.8,3320.0,3.41103645]
[1768347919368,0.002,3320.8,3320.0,6.42308464]
[1768347919569,0.002,3320.8,3320.0,3.41103645]
[1768347919972,0.95107589,3320.8,3320.0,3.41102617]
[1768347920182,0.002,3320.8,3320.0,3.41102617]
[1768347920556,0.002,3320.8,3320.0,0.399]
[1768347920984,0.95107589,3320.8,3320.0,0.399]
[1768347921189,0.02250801,3320.7,3320.0,0.399]
[1768347921391,0.02250801,3320.7,3319.4,0.94313973]
[1768347921392,0.02250801,3320.7,3319.7,3.01227151]
[1768347921553,0.94907589,3320.7,3319.3,3.85]
[1768347921756,0.94907589,3320.7,3319.5,3.01244411]
[1768347922180,0.94907589,3320.7,3319.6,3.01241045]
[1768347922387,0.94907589,3320.5,3319.6,3.01241045]
[1768347922596,0.94907589,3320.5,3319.4,3.41157406]
[1768347922795,0.94907589,3320.3,3319.0,0.001]
[1768347923001,0.94907589,3320.1,3319.0,3.41290393]
[1768347923295,0.94907589,3319.9,3319.0,3.41290393]
[1768347923499,0.94907589,3319.7,3319.0,0.001]
[1768347923705,0.94907589,3319.5,3318.5,0.001]
[1768347924061,0.94907589,3319.5,3318.5,3.01440812]
[1768347924492,0.79410151,3320.0,3319.1,0.94313973]
[1768347924493,0.39610151,3320.0,3319.1,0.94313973]
[1768347924676,0.94907589,3320.5,3319.5,0.04513059]
[1768347924865,0.27746307,3320.4,3319.5,0.04513059]
[1768347925068,0.002,3320.8,3319.6,0.03012411]
[1768347925293,0.27746021,3320.7,3319.6,0.03012411]
[1768347925492,0.002,3320.8,3319.7,0.399]
[1768347925764,0.27749461,3320.7,3319.7,0.399]
[1768347925965,0.002,3320.8,3319.8,0.03012229]
[1768347926176,0.002,3320.8,3319.7,0.399]
[1768347926900,0.002,3320.8,3319.8,1.13835571]
[1768347927076,0.002,3320.8,3320.0,0.94313973]
[1768347927708,0.002,3320.8,3320.1,0.94313973]
[1768347928006,0.002,3321.3,3320.3,0.94313973]
[1768347928888,0.002,3320.5,3320.3,0.94313973]
[1768347929204,0.002,3320.8,3320.4,6.02337066]
[1768347929504,0.002,3321.3,3320.5,0.69665104]
[1768347930207,0.002,3321.3,3320.6,0.399]
[1768347930376,0.95107589,3321.3,3320.6,0.399]
[1768347931824,0.002,3321.3,3320.6,0.399]
[1768347932830,0.002,3321.3,3320.6,3.41046706]
[1768347933796,0.002,3321.3,3320.4,3.01162879]
[1768347934148,0.95107589,3321.3,3320.5,0.399]
[1768347934300,0.95107589,3321.3,3320.6,0.399]
[1768347936543,0.95107589,3321.3,3319.5,0.04513059]
[1768347936839,0.92397873,3321.2,3319.7,0.399]
[1768347937036,0.92397873,3321.2,3319.7,3.41129962]
[1768347937242,0.92397873,3321.2,3319.8,6.0244593]
[1768347937403,3.93494047,3321.2,3319.9,0.399]
[1768347937733,0.39369405,3321.1,3319.9,0.399]
[1768347938304,1.31767278,3321.1,3319.9,0.399]
[1768347939717,0.92397873,3321.0,3319.7,6.02464078]
[1768347939917,0.92397873,3321.0,3319.8,0.399]
[1768347940165,0.39369405,3321.1,3319.8,13.80131248]
[1768347940332,0.002,3321.3,3319.9,0.64236408]
[1768347940532,0.002,3321.3,3320.2,0.001]
[1768347940734,0.002,3321.3,3320.3,0.399]
[1768347940935,0.002,3321.0,3320.3,0.399]
[1768347941832,0.92597873,3321.0,3320.3,0.399]
[1768347942234,0.92597873,3321.0,3320.2,0.001]
[1768347942432,0.92597873,3321.0,3320.3,0.399]
[1768347942823,0.92397873,3320.8,3320.2,0.001]
[1768347943030,0.92397873,3320.6,3320.2,0.4]
[1768347943356,0.92397873,3320.6,3320.1,0.399]
[1768347943525,0.92397873,3320.6,3318.8,1.00235526]
[1768347943526,0.92397873,3320.6,3319.2,3.01273725]
[1768347943864,0.92397873,3320.4,3319.3,0.399]
[1768347944059,1.31753607,3320.3,3319.3,3.41168284]
[1768347944237,1.31753607,3320.3,3319.3,0.399]
[1768347944671,1.31753607,3320.3,3319.3,3.0126754]
[1768347944864,1.31753607,3320.3,3319.4,0.399]
[1768347945236,0.92397873,3320.3,3319.4,0.399]
[1768347946265,0.92397873,3320.3,3319.4,3.41159201]
[1768347946628,0.92397873,3320.3,3319.4,0.399]
[1768347946833,0.92397873,3320.3,3319.4,3.41156213]
[1768347947327,0.92397873,3320.3,3319.4,0.399]
[1768347947528,3.958024,3320.6,3319.4,3.41158639]
[1768347947727,0.67434945,3320.5,3319.4,3.41158639]
[1768347947958,0.3958024,3320.5,3319.4,3.41158639]
[1768347948732,0.92397873,3320.4,3319.4,3.41158639]
[1768347950160,0.92397873,3320.4,3319.4,0.399]
[1768347950454,0.92397873,3320.4,3319.4,3.41158065]
[1768347950665,3.01153788,3320.6,3319.4,4.41293591]
[1768347950857,0.39355166,3320.5,3319.4,1.40035526]
[1768347951032,0.39355166,3320.5,3319.4,4.41292069]
[1768347951433,6.94689238,3320.7,3319.4,1.40035526]
[1768347951662,0.92397873,3320.5,3319.5,0.399]
[1768347951861,0.94648674,3320.4,3319.5,0.399]
[1768347952269,0.92397873,3320.3,3319.5,0.399]
[1768347952763,0.92397873,3320.3,3319.7,0.001]
[1768347952966,0.39357121,3320.2,3319.7,0.001]
[1768347953132,0.92397873,3320.3,3319.7,0.001]
[1768347954674,3.93713621,3321.0,3319.7,1.03247846]
[1768347954837,1.20263026,3320.9,3319.7,1.00235526]
[1768347955161,0.39371362,3320.9,3319.7,1.00235526]
[1768347955354,0.39371362,3320.9,3319.9,1.00135526]
[1768347955552,3.01315754,3321.0,3319.9,1.00135526]
[1768347955755,0.27868829,3320.9,3319.9,1.00135526]
[1768347956061,3.01315754,3321.0,3319.9,1.00135526]
[1768347956262,0.27873276,3320.9,3319.9,1.00135526]
[1768347956472,3.01315754,3321.0,3319.9,1.00135526]
[1768347956645,0.5801236,3320.9,3319.9,4.01349092]
[1768347956834,0.30131575,3320.9,3319.7,3.01330639]
[1768347957030,0.30131575,3320.9,3319.8,1.00135526]
[1768347957228,0.30131575,3320.9,3319.9,3.01213733]
[1768347958234,0.92397873,3320.8,3319.9,3.01213733]
[1768347958559,0.92397873,3320.7,3319.7,0.001]
[1768347958763,0.002,3321.0,3319.7,1.00235526]
[1768347958966,0.27885708,3320.9,3319.7,1.00235526]
[1768347959265,0.002,3321.0,3319.7,1.00235526]
[1768347959433,0.002,3321.0,3319.9,1.00135526]
[1768347959632,0.002,3321.0,3320.1,1.00135526]
[1768347959936,0.27890826,3320.9,3319.8,1.00135526]
[1768347960136,3.03568083,3321.0,3320.2,0.399]
[1768347960336,3.2902352,3320.9,3320.2,0.399]
[1768347960537,0.33147432,3320.8,3320.2,0.399]
[1768347960766,1.25545305,3320.8,3319.7,0.001]
[1768347961065,0.92397873,3320.6,3319.8,0.399]
[1768347961567,0.33147432,3320.8,3319.8,0.399]
[1768347961568,1.20295363,3320.5,3319.8,0.399]
[1768347961769,0.92397873,3320.5,3319.8,0.399]
[1768347962073,0.92397873,3320.5,3319.9,0.399]
[1768347962364,3.01177604,3320.3,3320.0,0.399]
[1768347962564,0.30342841,3320.2,3320.0,0.399]
[1768347962763,3.95821405,3320.4,3320.0,0.399]
[1768347963473,3.93570604,3320.4,3320.1,0.399]
[1768347963983,3.3428176,3320.8,3320.1,0.399]
[1768347964155,0.27883382,3320.7,3320.1,0.399]
[1768347964354,3.93521062,3320.9,3320.1,0.399]
[1768347964550,1.202864,3320.8,3320.1,0.399]
[1768347964866,0.002,3320.2,3320.1,0.399]
[1768347966259,0.002,3320.5,3320.1,0.740106]
[1768347966472,0.002,3320.5,3320.1,0.399]
[1768347966676,0.002,3320.5,3320.1,3.41095709]
[1768347966872,0.002,3320.5,3320.2,0.93047263]
[1768347967170,0.002,3321.0,3320.3,0.93047263]
[1768347968548,0.002,3321.0,3320.0,3.01199802]
[1768347968549,0.002,3321.0,3320.5,0.93047263]
[1768347968749,0.002,3321.0,3319.8,3.94265181]
[1768347968950,0.2789991,3320.9,3319.9,0.79336518]
[1768347969198,0.02250801,3320.8,3319.8,0.93047263]
[1768347969395,0.94746239,3320.9,3319.9,0.399]
[1768347970503,4.2600361,3320.8,3320.0,0.399]
[1768347970799,3.98134068,3320.8,3320.0,0.399]
[1768347971098,0.94746239,3320.1,3318.5,0.93147263]
[1768347971273,0.94746239,3319.9,3318.9,0.399]
[1768347971470,0.27865053,3319.8,3318.9,0.399]
[1768347971669,0.94746239,3319.9,3318.9,0.399]
[1768347971891,0.27847875,3319.8,3318.9,0.399]
[1768347972098,0.94746239,3319.9,3318.9,0.399]
[1768347972287,0.2784406,3319.8,3318.9,0.399]
[1768347972469,0.94746239,3319.8,3318.8,0.001]
[1768347972670,0.97530348,3319.7,3319.0,0.399]
[1768347972920,0.69717402,3319.7,3319.0,0.399]
[1768347973087,1.64463641,3319.7,3319.0,0.399]
[1768347973282,0.94746239,3319.6,3319.1,0.399]
[1768347973511,1.11192603,3319.6,3318.8,0.001]
[1768347973699,0.94746239,3319.4,3318.8,0.001]
[1768347974012,0.94746239,3319.2,3318.8,0.001]
[1768347974515,4.23801873,3319.1,3318.6,0.399]
[1768347974809,0.94746239,3318.9,3318.6,0.399]
[1768347975009,0.399,3318.6,3318.5,0.001]
[1768347975194,1.34646239,3318.6,3317.8,0.52440037]
[1768347975394,1.34646239,3318.6,3317.9,0.399]
[1768347975709,1.34646239,3318.6,3317.7,0.399]
[1768347975710,0.94746239,3318.5,3317.7,0.399]
[1768347976115,0.94746239,3318.5,3317.4,0.001]
[1768347976278,0.94746239,3318.3,3317.4,0.001]
[1768347976612,0.94746239,3318.1,3317.4,0.001]
[1768347976836,0.39611445,3318.0,3317.4,0.001]
[1768347977012,0.94746239,3318.1,3317.4,0.001]
[1768347977336,3.01351179,3318.4,3317.4,0.001]
[1768347978402,3.01344557,3318.5,3317.4,0.001]
[1768347978605,0.34124456,3318.4,3317.4,0.001]
[1768347979532,3.35478227,3318.4,3317.4,0.001]
[1768347979731,3.01353771,3318.4,3317.4,0.001]
[1768347979938,3.01353771,3318.4,3317.5,0.399]
[1768347980499,3.97807786,3318.5,3317.4,0.001]
[1768347980698,0.39780779,3318.4,3317.5,0.399]
[1768347981938,3.01315132,3318.8,3317.6,1.01224837]
[1768347982432,0.96466819,3319.1,3317.6,1.01224837]
[1768347982433,3.01303807,3319.0,3317.6,1.01224837]
[1768347982638,6.02607614,3319.0,3317.7,3.99624239]
[1768347982851,0.39777063,3318.9,3317.7,0.9821061]
[1768347985155,3.41089412,3318.9,3317.7,3.99621065]
[1768347985578,3.41089412,3318.9,3317.8,0.399]
[1768347985579,0.96466819,3318.8,3317.8,0.399]
[1768347985764,0.96466819,3318.7,3317.8,0.399]
[1768347985965,0.96466819,3318.5,3317.8,0.399]
[1768347986166,0.02250801,3318.4,3317.8,0.399]
[1768347986369,0.96466819,3318.5,3317.8,0.399]
[1768347986566,0.02250801,3318.4,3317.4,0.001]
[1768347986753,0.96466819,3318.5,3317.5,0.399]
[1768347987075,6.99166915,3318.4,3317.4,0.001]
[1768347987284,0.96466819,3318.3,3317.5,0.399]
[1768347987582,0.96466819,3318.3,3317.4,0.001]
[1768347987744,0.96466819,3318.3,3317.5,0.399]
[1768347988070,0.96466819,3318.1,3317.5,0.399]
[1768347988443,0.69916692,3318.2,3317.5,0.399]
[1768347989170,3.01377294,3318.1,3317.8,0.001]
[1768347989374,6.02754588,3318.1,3317.5,0.399]
[1768347989776,0.96466819,3317.9,3316.3,3.85]
[1768347989955,0.9871762,3317.8,3316.4,3.01525762]
[1768347990151,0.9871762,3317.8,3316.5,0.70052576]
[1768347990352,0.9871762,3317.8,3316.5,0.30152576]
[1768347990568,0.9871762,3317.8,3316.6,0.399]
[1768347990569,0.96466819,3317.8,3316.6,0.399]
[1768347991360,3.01413629,3317.7,3316.6,0.399]
[1768347991713,6.02827258,3317.7,3316.6,0.399]
[1768347991892,0.02250801,3317.6,3316.7,0.399]
[1768347992191,0.70154488,3317.6,3316.7,0.399]
[1768347992688,0.70154488,3317.6,3316.7,1.3811061]
[1768347992984,6.02814334,3317.8,3316.8,0.9821061]
[1768347993157,3.01407167,3317.8,3316.8,0.9821061]
[1768347993357,6.02708768,3318.4,3316.9,0.9821061]
[1768347993582,9.04063152,3318.4,3316.9,0.9821061]
[1768347996569,1.02086781,3318.3,3316.9,0.9821061]
[1768347996762,2.30586412,3318.2,3316.9,1.3821061]
[1768347996960,0.02250801,3318.1,3316.9,1.3821061]
[1768347997700,2.30586412,3318.2,3316.9,1.3821061]
[1768347997905,6.02754588,3318.1,3316.9,1.3821061]
[1768347998699,6.02754588,3318.1,3316.9,0.9821061]
[1768347998899,0.833341,3318.0,3316.9,0.9821061]
[1768347999882,6.0279092,3317.9,3316.9,0.9821061]
[1768348000675,6.0279092,3317.9,3317.2,0.001]
[1768348001390,7.026269,3317.9,3317.2,0.001]
[1768348001606,0.27733828,3317.8,3317.2,0.001]
[1768348001808,0.63052475,3317.7,3317.2,0.001]
[1768348003109,3.01398755,3317.9,3317.2,0.001]
[1768348003278,0.27752643,3317.8,3317.2,0.001]
[1768348003483,0.27752643,3317.7,3317.2,0.001]
[1768348003693,3.01398755,3317.9,3317.2,0.001]
[1768348003911,0.27769749,3317.8,3317.2,0.001]
[1768348004090,0.90826692,3317.7,3317.2,0.001]
[1768348004292,0.63056943,3317.7,3317.2,0.001]
[1768348004792,3.64476288,3317.7,3317.2,0.001]
[1768348004993,3.01419345,3317.7,3317.2,0.001]
[1768348005901,0.27800973,3317.6,3317.2,0.001]
[1768348006102,3.01414255,3317.7,3317.2,0.001]
[1768348006303,3.01408742,3317.8,3317.2,0.001]
[1768348006485,0.57941885,3317.7,3317.2,0.95297531]
[1768348006679,0.30140874,3317.7,3317.2,0.95297531]
[1768348008182,0.27825207,3317.6,3317.2,0.95297531]
[1768348008383,3.31555029,3317.7,3317.2,0.95297531]
[1768348008609,0.27824398,3317.6,3317.2,0.95297531]
[1768348008807,3.31555029,3317.7,3317.2,0.95297531]
[1768348009011,0.60979176,3317.6,3317.2,0.001]
[1768348009228,3.01400023,3317.9,3317.2,0.001]
[1768348009415,0.27825013,3317.8,3317.2,0.001]
[1768348009717,0.27825013,3317.7,3317.2,0.001]
[1768348009905,3.01400023,3317.9,3317.2,0.001]
[1768348010101,0.88103577,3317.8,3317.2,0.001]
[1768348010301,0.27824719,3317.7,3317.2,0.001]
[1768348010495,0.27824719,3317.6,3317.2,0.001]
[1768348010697,0.60278858,3317.8,3317.2,0.001]
[1768348010895,0.9413487,3317.7,3317.2,0.001]
[1768348011101,0.2782698,3317.6,3317.2,0.001]
[1768348011398,0.6630789,3317.7,3317.2,0.001]
[1768348011599,0.27829579,3317.6,3317.2,0.001]
[1768348011801,3.01408914,3317.8,3317.2,0.001]
[1768348012003,0.27829487,3317.7,3317.2,0.001]
[1768348012197,0.27829487,3317.6,3317.2,0.001]
[1768348012405,3.01408914,3317.8,3317.2,0.001]
[1768348012720,0.57981112,3317.7,3317.2,0.001]
[1768348013023,0.27840221,3317.6,3317.2,0.001]
[1768348013240,0.02250801,3317.5,3317.2,0.001]
[1768348013396,3.31557447,3317.7,3317.2,0.001]
[1768348013591,0.7101023,3317.6,3317.2,0.001]
[1768348013829,0.7101023,3317.6,3316.3,3.01538045]
[1768348013830,0.9983598,3317.4,3314.8,0.95197531]
[1768348014019,0.9519753,3316.0,3315.0,0.95197531]
[1768348014207,0.399,3315.9,3315.0,0.95197531]
[1768348014390,0.9519753,3316.0,3315.0,0.95197531]
[1768348014590,0.399,3315.9,3315.0,0.95197531]
[1768348014826,0.399,3315.9,3315.1,0.95197531]
[1768348015314,0.9519753,3316.0,3315.1,0.95197531]
[1768348015625,0.399,3315.9,3315.2,0.95197531]
[1768348016293,0.9519753,3316.0,3315.4,0.95197531]
[1768348016493,0.88915361,3316.0,3315.7,0.95197531]
[1768348016932,0.399,3316.7,3316.0,0.04517822]
[1768348017100,1.3973598,3316.7,3316.0,0.04517822]
[1768348017422,0.31720839,3316.8,3316.1,0.95197531]
[1768348017619,0.5561894,3316.9,3316.1,0.95197531]
[1768348019204,0.5561894,3316.9,3316.2,0.95197531]
[1768348019401,0.399,3316.9,3316.2,0.95197531]
[1768348019814,0.9983598,3316.8,3316.0,0.04517822]
[1768348020013,0.02250801,3316.7,3316.0,0.04517822]
[1768348020221,0.9983598,3316.7,3316.0,0.04517822]
[1768348020430,0.9983598,3316.5,3315.2,1.35197531]
[1768348020632,0.9983598,3316.3,3314.8,0.95197531]
[1768348020832,0.9983598,3316.1,3314.8,0.95197531]
[1768348021010,1.27647389,3316.0,3314.7,0.401]
[1768348021205,0.399,3315.9,3314.7,0.401]
[1768348021400,0.399,3315.9,3314.8,0.34179447]
[1768348021634,3.41485232,3315.9,3314.8,0.34179447]
[1768348021794,3.41485232,3315.9,3314.7,0.401]
[1768348022341,3.41485232,3315.9,3314.7,3.41785134]
[1768348022829,4.41321212,3315.9,3314.7,0.401]
[1768348023210,1.3973598,3315.9,3314.7,0.401]
[1768348023527,4.41313708,3315.9,3314.8,3.01670654]
[1768348023695,0.44131371,3315.8,3314.7,0.401]
[1768348024842,0.44131371,3315.8,3315.0,0.001]
[1768348025708,3.45724178,3315.8,3315.0,0.001]
[1768348026826,4.44619008,3315.8,3315.0,0.001]
[1768348027034,0.9889483,3315.7,3315.0,0.001]
[1768348027211,1.43356731,3315.6,3315.0,0.001]
[1768348029541,0.9889483,3315.6,3315.0,0.001]
[1768348030947,0.9889483,3315.6,3314.7,0.001]
[1768348031099,1.01145631,3315.5,3314.7,0.001]
[1768348031302,0.399,3315.4,3314.7,0.001]
[1768348031834,1.3879483,3315.4,3314.7,0.001]
[1768348031999,4.40425111,3315.4,3314.7,0.001]
[1768348032199,0.44267591,3315.3,3314.7,0.001]
[1768348032405,0.9889483,3315.2,3314.7,0.001]
[1768348033236,0.46518392,3315.3,3314.7,0.001]
[1768348033731,1.43162421,3315.3,3314.7,0.001]
[1768348034416,3.01640926,3315.2,3314.7,0.001]
[1768348034646,0.74644069,3315.1,3314.7,0.001]
[1768348035608,0.399,3315.0,3314.7,0.001]
[1768348036163,6.03045378,3316.5,3314.7,0.96546349]
[1768348036445,6.03081746,3316.3,3315.1,0.96446349]
[1768348036812,0.399,3316.2,3315.1,0.96446349]
[1768348037007,3.01540873,3316.3,3315.1,0.96446349]
[1768348037212,0.399,3316.2,3315.1,0.96446349]
[1768348037420,1.04198175,3316.2,3315.1,0.96446349]
[1768348038839,0.399,3316.1,3315.0,3.0175722]
[1768348039040,0.399,3316.1,3315.0,0.001]
[1768348039624,0.399,3316.1,3315.0,0.92741866]
[1768348039846,1.20041977,3316.1,3315.0,1.32183427]
[1768348040412,0.399,3316.0,3315.0,1.32183427]
[1768348040640,0.399,3316.0,3315.0,0.001]
[1768348040641,0.94103741,3315.9,3315.0,0.001]
[1768348040877,0.96354542,3315.8,3315.0,0.001]
[1768348041038,0.94103741,3315.8,3315.0,0.001]
[1768348041365,0.94103741,3315.6,3315.0,0.001]
[1768348041581,0.94103741,3315.4,3314.7,0.001]
[1768348041866,0.02250801,3315.3,3314.7,0.001]
[1768348042071,6.03180622,3315.8,3314.7,0.001]
[1768348042072,3.01569127,3316.0,3314.7,0.92741866]
[1768348042365,0.30156913,3315.9,3314.8,0.92641866]
[1768348042558,0.399,3315.8,3314.8,0.92641866]
[1768348042748,0.399,3315.8,3314.8,3.94310616]
[1768348043964,3.01568157,3316.0,3314.8,3.94310616]
[1768348044182,0.399,3315.9,3314.8,3.94310616]
[1768348044637,3.56304662,3316.7,3314.9,0.95658548]
[1768348044839,4.04877331,3316.6,3315.2,0.92641866]
[1768348045132,0.27832438,3316.5,3315.2,0.92641866]
[1768348045356,1.21936179,3316.4,3315.0,3.01656603]
[1768348045669,1.21936179,3316.4,3315.0,6.03315728]
[1768348045670,1.00330594,3316.3,3315.0,6.03315728]
[1768348045844,1.66601897,3316.3,3315.0,3.01656603]
[1768348046051,1.66601897,3316.3,3314.9,3.78236824]
[1768348046345,1.10763931,3316.2,3315.0,3.0165673]
[1768348046670,0.399,3316.1,3315.0,3.0165673]
[1768348047965,0.002,3315.7,3315.0,3.0165673]
[1768348048938,0.002,3315.7,3315.1,0.92641866]
[1768348049143,0.002,3315.7,3315.3,0.92641866]
[1768348049841,0.002,3315.7,3315.1,0.47086953]
[1768348050048,0.002,3315.7,3315.0,0.92641866]
[1768348050767,0.002,3315.7,3315.0,3.94300257]
[1768348050969,0.002,3315.7,3315.1,3.01644624]
[1768348051343,0.002,3315.7,3315.0,3.94299178]
[1768348051543,0.002,3315.7,3315.1,0.39429918]
[1768348051876,0.002,3315.7,3315.2,0.95658275]
[1768348052074,0.002,3316.0,3315.2,0.95658275]
[1768348052378,0.002,3316.0,3315.2,0.92641866]
[1768348052572,0.002,3316.0,3315.3,0.03016318]
[1768348052771,0.54800113,3316.7,3315.9,0.92641866]
[1768348052953,0.2783075,3316.6,3315.4,0.92641866]
[1768348053269,0.2783075,3316.5,3315.4,0.92641866]
[1768348053472,0.94103741,3316.4,3315.3,3.01631828]
[1768348053672,0.94103741,3316.4,3315.4,0.67154512]
[1768348054771,3.01516256,3316.6,3315.4,0.67154512]
[1768348054974,1.24105685,3316.5,3315.4,0.67154512]
[1768348055145,0.96285478,3316.5,3315.4,0.67154512]
[1768348055478,0.69931799,3316.4,3315.2,4.62553368]
[1768348055666,3.71466864,3316.4,3315.2,4.62553368]
[1768348055840,0.96285478,3316.3,3315.0,3.85]
[1768348056042,0.96285478,3316.3,3315.0,4.25]
[1768348056264,0.96285478,3316.3,3315.2,3.01637264]
[1768348056475,0.96285478,3316.3,3315.0,4.25]
[1768348056669,0.96285478,3316.1,3315.0,4.25]
[1768348056970,0.399,3316.2,3315.0,4.25]
[1768348057178,0.96285478,3316.3,3315.0,4.25]
[1768348057349,0.79681808,3316.2,3315.3,0.99136444]
[1768348057552,3.978046,3316.6,3315.3,0.99136444]
[1768348057882,3.69222664,3316.5,3315.3,0.99136444]
[1768348058047,0.27795499,3316.4,3315.3,0.99136444]
[1768348058247,3.97812643,3316.5,3315.3,0.99136444]
[1768348058472,2.33908345,3316.4,3315.2,3.01636834]
[1768348058769,0.96285478,3316.3,3315.2,3.01636834]
[1768348058976,0.96285478,3316.3,3315.3,3.01629053]
[1768348059185,0.96285478,3316.3,3315.1,3.01642541]
[1768348059473,0.96285478,3316.3,3315.2,3.01636936]
[1768348059673,1.40056304,3316.3,3315.3,3.0162943]
[1768348059971,1.40056304,3316.3,3315.5,0.001]
[1768348060177,0.002,3316.1,3315.5,0.001]
[1768348060580,0.002,3316.1,3315.5,0.99236444]
[1768348062280,0.002,3316.1,3315.6,0.99136444]
[1768348062464,0.002,3316.1,3315.5,3.41711173]
[1768348062465,0.002,3316.4,3315.9,0.99136444]
[1768348063066,0.002,3316.4,3315.7,0.44084762]
[1768348063383,0.002,3316.4,3315.6,0.4]
[1768348063583,0.98736279,3316.4,3315.6,0.4]
[1768348063787,0.98736279,3316.4,3315.5,0.001]
[1768348064384,3.01540873,3316.3,3315.5,0.001]
[1768348064588,0.40027715,3316.2,3315.5,0.001]
[1768348064759,0.96285478,3316.1,3315.5,0.001]
[1768348064959,0.40027715,3316.2,3315.5,0.001]
[1768348066814,3.41580971,3316.2,3315.5,0.001]
[1768348066985,0.79927715,3316.2,3315.5,0.001]
[1768348067197,0.399,3316.2,3315.5,0.001]
[1768348067366,4.39987216,3316.2,3315.5,0.001]
[1768348067566,0.96285478,3316.1,3315.5,0.001]
[1768348067768,0.98536279,3316.0,3315.5,0.001]
[1768348068987,0.02250801,3316.0,3315.5,0.001]
[1768348069167,0.96285478,3315.9,3315.5,0.001]
[1768348069889,0.02250801,3315.8,3315.5,0.001]
[1768348070086,0.399,3315.7,3315.5,0.001]
[1768348070302,1.36185478,3315.7,3315.5,0.001]
[1768348070518,0.399,3315.7,3315.5,0.001]
[1768348071076,0.34149368,3315.6,3315.5,0.001]
[1768348071290,0.34149368,3315.6,3314.7,0.001]
[1768348071291,0.61933434,3315.6,3314.7,0.001]
[1768348071492,0.34149368,3315.6,3314.7,0.001]
[1768348072210,0.34149368,3315.6,3315.5,0.001]
[1768348072418,0.96285478,3315.5,3314.7,0.001]
[1768348072918,0.47418148,3315.5,3314.7,0.001]
[1768348073083,0.96285478,3315.4,3314.7,0.001]
[1768348073717,0.4,3315.3,3314.7,0.001]
[1768348073922,0.47418148,3315.5,3314.7,0.001]
[1768348074338,0.34149368,3315.6,3314.7,0.001]
[1768348074339,0.74149368,3315.6,3314.7,0.001]
[1768348075122,3.75756565,3315.6,3314.7,0.001]
[1768348076010,0.98536279,3315.5,3314.7,0.001]
[1768348077516,0.96285478,3315.3,3313.7,0.99136444]
[1768348077720,0.96285478,3315.1,3313.8,3.01761907]
[1768348077931,0.96285478,3314.9,3313.8,3.01761907]
[1768348078133,0.4,3315.0,3313.9,0.99136444]
[1768348078802,0.4,3315.0,3313.9,4.00892118]
[1768348079211,0.4,3315.0,3314.0,3.01749156]
[1768348079412,0.4,3315.0,3314.1,0.99136444]
[1768348079603,0.34165084,3314.9,3314.1,0.99136444]
[1768348079928,0.34165084,3314.9,3313.8,0.99136444]
[1768348080285,0.34165084,3314.9,3313.9,0.99136444]
[1768348080632,0.34165084,3314.9,3313.3,0.99136444]
[1768348080633,0.96285478,3314.7,3313.3,0.99136444]
[1768348080792,0.96285478,3314.7,3313.5,0.99136444]
[1768348081121,0.27716746,3314.6,3313.5,0.99136444]
[1768348081324,0.27716746,3314.5,3313.6,0.99136444]
[1768348081623,0.27716746,3314.4,3313.6,0.99136444]
[1768348081852,0.27716746,3314.3,3313.6,0.99136444]
[1768348082133,3.01699127,3314.6,3313.6,0.99136444]
[1768348082134,0.27716746,3314.2,3313.6,0.99136444]
[1768348082305,0.27716746,3314.1,3313.6,0.99136444]
[1768348082505,0.27716746,3314.0,3313.6,0.99136444]
[1768348082701,0.27716746,3313.9,3313.6,0.99136444]
[1768348082919,3.01698998,3314.6,3313.7,0.99136444]
[1768348083912,3.01686427,3314.7,3313.9,0.001]
[1768348084341,3.01679733,3314.8,3313.9,0.99236444]
[1768348084526,6.03359466,3314.8,3313.9,0.001]
[1768348084724,0.33584482,3314.7,3313.9,0.001]
[1768348084914,1.26094677,3314.7,3313.9,0.001]
[1768348085114,0.92510195,3314.6,3313.9,0.001]
[1768348085512,0.33584482,3314.7,3313.9,0.95069064]
[1768348085724,0.63694395,3314.6,3313.9,0.001]
[1768348085923,3.01704631,3314.5,3313.9,0.001]